Cogmind - Beta 14 @@@ ROGUE MODE // 2024.09.03 @ 12:20:21 Player: BadFPS Result: Destroyed by H-61 Shepherd with Heavy Assault Cannon Performance ------------- Evolutions (2) 1000 Regions Visited (3) 600 Robots Destroyed (76) 380 Value Destroyed (2040) 2040 Prototype IDs (17) 340 Alien Tech Used (0) 0 Bonus (0) 0 TOTAL SCORE: 4360 Bonus ------- None Cogmind --------- Core Integrity 0/550 Matter 159/300 Energy 385/405 System Corruption 9% Temperature Cool (0) Movement Treading (305) Ox2 Location -8/Materials Parts ------- > --- POWER (2) -------- Improved Ion Engine Nuclear Core > --- PROPULSION (2) --- Advanced Treads Advanced Treads > --- UTILITY (4) ------ Improved Cooling System Large Storage Unit Core Analyzer Hardened Medium Armor Plating > --- WEAPON (3) ------- Ion Cannon Enhanced Autogun Enhanced Autogun > --- INVENTORY (15) --- Advanced Treads Advanced Treads Improved Heat Sink Compact Battery (200) Improved Sensor Array Improved Signal Interpreter Particle Charger Hacking Suite System Shield Advanced Beam Cannon Advanced Beam Cannon Heavy Rocket Launcher Heavy Rocket Launcher Peak State ------------ > --- POWER ------------ Cooled Ion Engine Nuclear Core > --- PROPULSION ------- Advanced Treads Advanced Treads > --- UTILITY ---------- Improved Cooling System Large Storage Unit Core Analyzer Makeshift Light Armor Plating > --- WEAPON ----------- Ion Cannon Enhanced Autogun Enhanced Autogun > --- INVENTORY -------- Light Ion Engine Improved Ion Engine Advanced Treads Advanced Treads Advanced Treads Improved Heat Sink Compact Battery Improved Sensor Array Improved Signal Interpreter Light Armor Plating System Shield Advanced Beam Cannon Advanced Beam Cannon Heavy Rocket Launcher Heavy Rocket Launcher [Rating: 40] Favorites ----------- Power Ion Engine Engine Ion Engine Power Core Nuclear Core Propulsion Light Treads Treads Light Treads Leg Cargo Legs Wheel Subdweller Monowheel Hover Unit Aerolev Unit Utility Large Storage Unit Device Improved Cooling System Storage Large Storage Unit Processor Targeting Computer Protection Makeshift Light Armor Plating Weapon Enhanced Autogun Energy Gun Medium Laser Energy Cannon Ion Cannon Ballistic Gun Enhanced Autogun Ballistic Cannon Battle Cannon Special Weapon Mining Laser Build | -11 -10 -10 -8 ------- Run | Yrd Mat Sub Mat Slots Evolved 4 | . . . 4 Power 1 | . . . 1 Propulsion . | . . . . Utility 2 | . . . 2 Weapon 1 | . . . 1 Parts Attached 119 | 7 17 19 76 Power 21 | 1 1 2 17 Engine 15 | 1 1 2 11 Core 6 | . . . 6 Reactor . | . . . . Propulsion 18 | 2 1 2 13 Treads 13 | 2 1 1 9 Leg 2 | . . 1 1 Wheel 2 | . . . 2 Hover 1 | . . . 1 Flight . | . . . . Utility 33 | 2 7 2 22 Device 19 | 1 4 1 13 Storage 4 | 1 3 . . Processor 2 | . . 1 1 Hackware . | . . . . Protection 8 | . . . 8 Artifact . | . . . . Weapon 47 | 2 8 13 24 Energy Gun 7 | 1 . 2 4 Energy Cannon 10 | . . 1 9 Ballistic Gun 23 | 1 5 8 9 Ballistic Cannon 1 | . . . 1 Launcher . | . . . . Special Weapon 6 | . 3 2 1 Impact Weapon . | . . . . Slashing Weapon . | . . . . Piercing Weapon . | . . . . Special Melee Weapon . | . . . . Unidentified Prototypes 4 | . . . 4 Corrupted Parts 3 | . . . 3 System Corruption 8 | . . . 8 Parts Lost 18 | . . 1 17 Power 6 | . . . 6 Propulsion 2 | . . . 2 Utility 5 | . . 1 4 Weapon 5 | . . . 5 Highest Loss Streak 6 | . . 1 6 To Critical Strikes . | . . . . Average Slot Usage (%) 89 | . 99 76 92 Engine 11 | . 14 11 8 Core 3 | . . . 7 Treads 13 | . 28 6 10 Leg 3 | . . 8 1 Wheel 1 | . . . 2 Device 11 | . 14 3 15 Storage 10 | . 14 11 8 Processor 6 | . . 10 6 Protection 2 | . . . 4 Energy Gun 6 | . 9 6 3 Energy Cannon 3 | . . . 7 Ballistic Gun 13 | . 17 15 10 Peak Build Rating 40 | 7 9 27 40 Average Rating 23 | 6 7 22 33 On Entrance 10 | . 7 8 26 Naked Turns . | . . . . Heaviest Build 60 | 14 30 36 60 Greatest Support 55 | 40 40 55 55 Greatest Overweight (x) 10 | 1 . 10 2 Average Overweight (x) . | . . . . Largest Inventory Capacity 20 | 8 20 15 15 Average Capacity 13 | 7 10 15 15 Most Carried 15 | 3 11 15 15 Average Carried 10 | 1 7 14 11 Final Capacity 15 | 8 15 15 15 Final Carried 15 | 3 11 15 13 Class Distribution -------------------- 60% | Mutant 25% | Gunner 4% | Subdweller-Gunner 4% | Scavenger-Mutant Dominant Class ---------------- Mutant | -10/Materials Mutant | -10/Subcaves Gunner | -8/Materials Resources | -11 -10 -10 -8 ----------- Run | Yrd Mat Sub Mat Matter Collected 2045 | 268 168 446 1163 Remotely . | . . . . Salvage Created 2699 | 38 493 367 1801 Parts 165 | 4 36 25 100 Haulers Intercepted 7 | . 2 . 5 Recyclers Shooed 2 | . 2 . . Parts Field Recycled . | . . . . Retrieved Matter . | . . . . Parts Self-Destructed 14 | . . 14 . Prevented . | . . . . Kills | -11 -10 -10 -8 ------- Run | Yrd Mat Sub Mat Combat Hostiles Destroyed 47 | . 7 11 29 Melee 1 | . . . 1 Guns 36 | . 7 11 18 Cannons 9 | . . . 9 Classes Destroyed 14 | 1 6 2 5 Worker 2 | . . . 2 Builder 3 | . . . 3 Tunneler 4 | 2 1 . 1 Hauler 7 | . 2 . 5 Recycler 3 | . 1 . 2 Operator 2 | . 1 . 1 Turret 2 | . . 2 . Watcher 6 | . 3 . 3 Swarmer 13 | . 3 7 3 Grunt 21 | . 4 . 17 Brawler 1 | . . . 1 Sentry 4 | . . . 4 Specialist 4 | . . . 4 Subdweller 4 | . . 4 . Best Kill Streak 6 | 1 5 6 5 Combat Bots Only 6 | . 2 6 4 Max Kills in Single Turn 2 | 1 1 1 2 Gunslinging . | . . . . Exploded . | . . . . Melee 1 | . . . 1 Uniques/NPCs Destroyed . | . . . . Combat | -11 -10 -10 -8 -------- Run | Yrd Mat Sub Mat Hostile Shots Fired 441 | . 18 129 294 Missed 125 | . 5 44 76 Damage Taken 4479 | . 187 884 3408 Core 829 | . 55 180 594 Absorbed by Shields . | . . . . Core Remaining (%) 53 | 100 . 6 . Volleys Fired 240 | 7 45 50 138 Largest 3 | 2 2 2 3 Hottest 204 | 70 100 100 204 Shots Fired 484 | 14 85 90 295 Gun 331 | 14 80 84 153 Cannon 138 | . . . 138 Launcher . | . . . . Special 15 | . 5 6 4 Kinetic 247 | 7 42 56 142 Thermal 220 | 7 43 34 136 Explosive . | . . . . Electromagnetic 17 | . . . 17 Robot Hit Streak 24 | 6 11 12 24 Robot Miss Streak 11 | 1 4 11 4 Penetration Max . | . . . . Secondary Targets 3 | . . 3 . Max Gunslinging Chain 1 | . . 1 . Shots Hit Robots 310 | 10 50 58 192 Core Hits 161 | 2 28 28 103 Critical Kills 4 | . . 1 3 Critical Parts Destroyed . | . . . . Critical Strikes 13 | . 3 2 8 Burn 4 | . 3 . 1 Meltdown 2 | . . . 2 Destroy 3 | . . 2 1 Blast 4 | . . . 4 Melee Attacks . | . . . . Impact . | . . . . Slashing . | . . . . Piercing . | . . . . Sneak Attacks . | . . . . Combat Hostiles . | . . . . Follow-up Attacks . | . . . . Damage Inflicted 5792 | 116 564 1004 4108 Guns 3385 | 116 559 1004 1706 Cannons 2089 | . . . 2089 Explosions 197 | . . . 197 Melee . | . . . . Ramming 73 | . 5 . 68 Kinetic 2516 | 42 187 665 1622 Thermal 2833 | 74 372 339 2048 Explosive 197 | . . . 197 Electromagnetic 173 | . . . 173 Impact . | . . . . Slashing . | . . . . Piercing . | . . . . Highest Corruption 9 | . 1 1 9 Average Corruption 3 | . 1 1 6 Corruption Purged . | . . . . Corruption Blocked . | . . . . Effects 82 | . 6 14 62 Message Errors 23 | . 1 4 18 Matter Fused 18 | . 2 5 11 Heat Flow Errors 10 | . 1 4 5 Energy Discharges 9 | . 1 . 8 Parts Rejected 1 | . . . 1 Parts Fused 1 | . . . 1 Data Loss (minor) 6 | . 1 1 4 Data Loss (major) 4 | . . . 4 Misfires 2 | . . . 2 Weapon Failures 8 | . . . 8 Overload Shots . | . . . . Overflow Damage 71 | . . . 71 Projectiles 9 | . . . 9 Explosions 62 | . . . 62 Melee . | . . . . Knockbacks 13 | . . . 13 Impact . | . . . . Kinetic 10 | . . . 10 Secondary 3 | . . . 3 Self-Inflicted Damage 116 | . . . 116 Shots 1 | . . . 1 Rammed 21 | . 2 . 19 Targets Rammed 22 | . 2 . 20 Kicked . | . . . . Crushed 1 | . . . 1 Highest Temperature 351 | 50 252 229 351 Average Temperature 76 | 23 51 36 98 Received Heat Transfer 2118 | . 87 366 1665 Effects 2 | . 2 . . Interference 2 | . 2 . . Siege Activations . | . . . . Robots Corrupted . | . . . . Combat Hostiles . | . . . . Parts Fried 1 | . . . 1 Impact Corruptions . | . . . . Robots Melted 3 | . . . 3 Combat Hostiles 1 | . . . 1 Parts Melted 9 | . . . 9 Heat Transferred 5271 | 222 1332 415 3302 Parts Sabotaged . | . . . . Parts Stolen . | . . . . Parts Stripped . | . . . . Power Chain Reactions . | . . . . Alert | -11 -10 -10 -8 ------- Run | Yrd Mat Sub Mat Peak Influence 260 | 10 160 . 260 Initial 6 | . 6 . . Average 66 | 3 33 . 88 Maximum Alert Level 1 | . . . 1 Low Security (%) 97 | 100 100 . 96 Level 1 2 | . . . 3 Level 2 . | . . . . Level 3 . | . . . . Level 4 . | . . . . Level 5 . | . . . . High Security . | . . . . Max Security . | . . . . Squads Dispatched 7 | . 2 . 5 Investigation 2 | . 1 . 1 Extermination . | . . . . Reinforcement 5 | . 1 . 4 Assault . | . . . . Garrison . | . . . . Intercept . | . . . . Searches Triggered . | . . . . Construction Impeded 1 | . . . 1 Haulers Reinforced . | . . . . Active Scanning Responses . | . . . . Cargo Convoy Interrupts . | . . . . Stealth | -11 -10 -10 -8 --------- Run | Yrd Mat Sub Mat Distress Signals 4 | . 1 . 3 Communications Jammed . | . . . . Distress Signals . | . . . . Times Spotted 84 | . 21 17 46 Peak Tracking Total 6 | . 4 6 5 Tactical Retreats 4 | . 2 1 1 Traps | -11 -10 -10 -8 ------- Run | Yrd Mat Sub Mat Traps Triggered 5 | . 1 2 2 Indirectly . | . . . . Trap Hack Attempts . | . . . . Triggered . | . . . . Disarmed . | . . . . Reprogrammed . | . . . . Reused . | . . . . Traps Extracted . | . . . . Installed . | . . . . Triggered . | . . . . Machines | -11 -10 -10 -8 ---------- Run | Yrd Mat Sub Mat Machines Disabled 10 | . . 5 5 Max in Single Turn 2 | . . 2 2 Garrison Access 1 | . . . 1 Machines Repaired . | . . . . Machines Dismantled . | . . . . Machines Sabotaged . | . . . . Overloaded Fab Kills . | . . . . Hacking | -11 -10 -10 -8 --------- Run | Yrd Mat Sub Mat Machines Accessed 13 | . 5 2 6 Terminals 8 | . 4 . 4 Fabricators . | . . . . Repair Stations . | . . . . Recycling Units 1 | . 1 . . Scanalyzers 1 | . . . 1 Garrison Access 1 | . . . 1 Total Hacks 44 | . 11 13 20 Successful 28 | . 4 13 11 Failed 16 | . 7 . 9 Catastrophic 4 | . 3 . 1 Database Lockouts . | . . . . Manual 9 | . 5 . 4 Terminals 23 | . 9 . 14 Fabricators . | . . . . Repair Stations . | . . . . Recycling Units 2 | . 2 . . Scanalyzers 4 | . . . 4 Garrison Access 2 | . . . 2 Terminal Hacks 23 | . 3 13 7 Record 16 | . . 12 4 Robot Analysis 1 | . . . 1 Prototype ID Bank 1 | . 1 . . Branch Access Points 1 | . . . 1 Unreport Threat 2 | . 1 . 1 Maintenance Status 1 | . 1 . . Derelict Proto ID Bank 1 | . . 1 . Fabricator Hacks . | . . . . Repair Station Hacks . | . . . . Recycling Unit Hacks . | . . . . Scanalyzer 2 | . . . 2 Insert Component 1 | . . . 1 Analyze 1 | . . . 1 Garrison Access Hacks 1 | . . . 1 Seal Access 1 | . . . 1 Unauthorized Hacks 2 | . 1 . 1 Terminals 2 | . 1 . 1 Botnet 2 | . 1 . 1 Fabricators . | . . . . Repair Stations . | . . . . Recycling Units . | . . . . Scanalyzers . | . . . . Garrison Access . | . . . . Data Cores Recovered . | . . . . Used . | . . . . Hacking Detections 11 | . 5 . 6 Full Trace Events 4 | . 1 . 3 Feedback Events 2 | . 1 . 1 Corruption 2 | . 1 . 1 Feedback Blocked . | . . . . Robot Schematics Acquired . | . . . . Robots Built . | . . . . Authchips . | . . . . Time . | . . . . Total Robot Build Rating . | . . . . Part Schematics Acquired 1 | . . . 1 Parts Built . | . . . . Authchips . | . . . . Time . | . . . . Total Part Build Rating . | . . . . Parts Repaired . | . . . . Time . | . . . . Parts Recycled . | . . . . Recycled Matter . | . . . . Retrieved Matter . | . . . . Retrieved Components . | . . . . Parts Scanalyzed 1 | . . . 1 Part Schematics Acquired 1 | . . . 1 Parts Damaged . | . . . . Bothacking | -11 -10 -10 -8 ------------ Run | Yrd Mat Sub Mat Used RIF Installer . | . . . . Robots Hacked . | . . . . Non-combat . | . . . . Combat . | . . . . Robot Hacks Applied . | . . . . Relay Couplers Released . | . . . . Fabnet Peak Effective % . | . . . . Robots Rewired . | . . . . Allies Hacked . | . . . . Hacks Repelled . | . . . . Allies | -11 -10 -10 -8 -------- Run | Yrd Mat Sub Mat Total Allies . | . . . . Largest Group . | . . . . Highest-Rated Group . | . . . . Highest-Rated Ally . | . . . . Total Orders . | . . . . Ally Attacks . | . . . . Total Damage . | . . . . Kills . | . . . . Allies Corrupted . | . . . . Allies Melted . | . . . . Intel | -11 -10 -10 -8 ------- Run | Yrd Mat Sub Mat Robot Analysis Total 1 | . . . 1 Derelict Logs Recovered 1 | . . 1 . Drone Launches . | . . . . Drone Recoveries . | . . . . Exploration | -11 -10 -10 -8 ------------- Run | Yrd Mat Sub Mat Turns Passed 5941 | 137 1508 1670 2626 Spaces Moved 2671 | 70 582 984 1035 Core 10 | 8 . 2 . Treads 1392 | 62 582 207 541 Legs 1039 | . . 775 264 Wheels 230 | . . . 230 Hover . | . . . . Flight . | . . . . Fastest Speed 50 | 50 160 130 107 Average Speed 157 | 149 160 137 176 Slowest Speed 550 | 160 160 550 305 Overloaded Moves . | . . . . Propulsion Burnouts . | . . . . Robots Hopped . | . . . . Cave-ins Triggered . | . . . . Exploration Rate (%) 48 | 5 78 57 54 Regions Visited 3 Branch Regions 1 Pre-discovered Areas 1 | . . 1 . Known Exits Taken . | . . . . Unknown Exits Taken 3 | 1 1 1 . Scrap Searched 8 | . . 8 . Spaces Dug 12 | . 5 . 7 Terrain Destroyed 45 | . 5 4 36 Melee . | . . . . Projectile 26 | . 5 4 17 AOE 19 | . . . 19 Terrain Rammed . | . . . . Walls Destroyed . | . . . . Machines Disabled . | . . . . Actions | -11 -10 -10 -8 --------- Run | Yrd Mat Sub Mat Total 3939 | 86 1070 1204 1579 Wait 746 | . 395 124 227 Move 2668 | 69 581 983 1035 Hop . | . . . . Pick Up 62 | 3 15 12 32 Fast Attach 44 | 7 2 2 33 Attach 24 | . 1 2 21 Detach 9 | . 2 1 6 Swap 51 | . 14 15 22 Drop 72 | . 13 15 44 Fire 240 | 7 45 50 138 Melee . | . . . . Ram 2 | . . . 2 Kick . | . . . . Crush 20 | . 2 . 18 Escape Stasis . | . . . . Rewire . | . . . . Trap . | . . . . Miscellaneous 1 | . . . 1 Route ------- -11/Scrapyard -10/Materials (discovered 4 exits: [*Mat] / [*Min x2] / *Sub) -10/Subcaves (discovered 3 exits: *Mat x2 / *Rec) -8/Materials (discovered 1 exit: *Sto) History --------- Turn | Location | Event 5 | -11/Scrapyard | Discovered new exit (range 15) 138 | -11/Scrapyard | Entered Materials 310 | -10/Materials | Build established: Mutant 876 | -10/Materials | Discovered new exit (range 12) 1164 | -10/Materials | Discovered new exit (range 5) 1388 | -10/Materials | Discovered new exit (range 3) 1631 | -10/Materials | Discovered new exit (range 9) 1646 | -10/Materials | Entered Subcaves 1743 | -10/Subcaves | Disturbed a concealed Subdweller 2009 | -10/Subcaves | Visited 4L-MR0's lab 2045 | -10/Subcaves | Found Cargo Legs 2046 | -10/Subcaves | Attached Cargo Legs, gained temporary slots: Utility x2 2090 | -10/Subcaves | Discovered new exit (range 15) 2097 | -10/Subcaves | Identified exit to Recycling 2248 | -10/Subcaves | Core integrity fell below 50% 2251 | -10/Subcaves | Ambushed by Subdweller buried in earth 2265 | -10/Subcaves | Ambushed by Subdweller buried in earth 2301 | -10/Subcaves | Core integrity fell below 20% 2761 | -10/Subcaves | Visited Clippyterm 2765 | -10/Subcaves | Learned location of Extension (-6) 2765 | -10/Subcaves | Learned Factory trap positions 3060 | -10/Subcaves | Shifting Twisted Machinery released Sub. Monowheel 3209 | -10/Subcaves | Discovered new exit (range 5) 3215 | -10/Subcaves | Shifting Twisted Machinery released Shrapnel Trap 3226 | -10/Subcaves | Shifting Twisted Machinery released Spk. Treads 3316 | -10/Subcaves | Entered Materials 3316 | -8/Materials | Evolved 4 slots: Power x1, Utility x2, Weapon x1 3652 | -8/Materials | Lost 3 parts (2p1u) 3976 | -8/Materials | Lost 5 parts (2p1u2w) 4042 | -8/Materials | Core integrity fell below 50% 4099 | -8/Materials | Lost 6 parts (2p1n2u1w) 4769 | -8/Materials | Identified exit to Storage 4793 | -8/Materials | Build established: Gunner 5862 | -8/Materials | Core integrity fell below 20% 5942 | -8/Materials | Destroyed by H-61 Shepherd with Heavy Assault Cannon Last Messages --------------- 05845_ System corrupted: Matter fused (-8). 05846_ R-06 Scavenger collects Nuclear Core. 05850_ R-06 Scavenger collects Imp. Heat Sink. 05860_ HTFOYI%HNU||OT EG,IRW W5OKFMGDX3P 05889_ Critical hit (Burn: +37). 05895_ System corrupted: Enh. Autogun jammed. 05898_ J:7U7=KT#O OZKLZOV<3ZT8XV7MV=ZDFNFLNGQ 05898_ System corrupted: Enh. Autogun jammed. 05898_ Y-45 Defender destroyed. 05904_ K-01 Serf collects debris. 05927_ U-05 Engineer builds a Wall. 05933_ System corrupted: Ion Cannon failed to cycle. 05940_ Penetrated by Slug. 05940_ Adv. Treads blasted off. 05941_ U-05 Engineer builds a Wall. 05942_ The unstable cave ceiling collapses. 05942_ Acquired Adv. Treads. Map ----- +----------------------------------------------------+ | | | ????????????????????????????????????????????????? | | ????????????????????????????????????????????????? | | ????????????????????????????????????????????????? | | ???????????####??????????????????????????#######? | | ??????????? ????????????????################? | | ?????????? #####+###???????########### ##? | | ??????????? ##########= = ### ##? | | ??????????? ########## ]### ### | | ??????????? / ### ### | | ??????????? #= ### # | | ??????????????##### # ### # | | ?????????????? #### ! " !! ### # | | ?????????????????### ! "###+##### # | | ??????????????????## [ # | | ??????????????????## ############## ##### # | | ??????????????????## ##############*##### ### | | ??????????????????## #?????#?????##[##?## = | | ??????????????????## #?????# ???##=##?## | | ???????????????????# #?????# ?##%##### | | ???????????????????# #?????# #!########### | | ?????????????????### ###???# !=## | | ?????????????????# ###### # ## | | ?????????????????# %##%######### ## | | ?????????????????# % ;########## + """ """ | | ?????????????????# H @#### # # """ """ | | ?????????????????# %u##?# # # """ """ | | ?????????????????# #??# """ + # | | ?????????????????# #??# """ # # | | ?????????????????## ##??# """ # ########## | | ??????????????????# ????# # #### ! | | ????????????????? ?########### ####! """% | | ???????????????? ## * # #### %"" = | | ??????????????? + # %####% "![ | | ?????????????? ?# %+ ####%%]% % | | ????????????? ?# #%% #### %%%% | | ????????????? ######+?# # % ########## | | ??????????????? ????????# "" "" # ########## | | ?????????????????????????# * ""S"" # % | | ?????????????????????????# """" # | | ?????????????????????????########### | | ?????????????????????????########### """ """ " | | ?????????????????????????## # %%"" """ " | | ?????????????????????????## # %%"% """ " | | ?????????????????????????## !!# %%% """ % | | ?????????????????????????## =%# *% | | ?????????????????????????## %+% ! | | ?????????????????????????## %# | | ?????????????????????????## =# =########## | | ?????????????????????????## # %# # | +----------------------------------------------------+ Best States ------------- Heat Dissipation 78 Energy Generation 23 Energy Capacity 420 Matter Stores 300 Matter Capacity 300 Sight Range 21 Robot Scan Range 15 Terrain Scan Range 16 Terrain Scan Density 10 Armor Coverage 800 Evasion (%) 55 Targeting Accuracy 5 Core Analysis 6 Recoil Reduction 2 Item Schematics ----------------- Imp. Light Armor Plating | -8/Materials | Scanalyzed Robot Schematics ------------------ None Fabricated ------------ Nothing Alien Tech Used ----------------- None Achievements -------------- None Challenges ------------ None Game ------ Seed SpectralChipDeconstructor Manual? 0 Play Time 01:13:54 Cumulative 28.1 hours Start 2024.09.03 @ 11:04:25 End 2024.09.03 @ 12:20:21 Sessions 1 Manual Loads 0 Difficulty Rogue Special Mode None Game No. 14 Rogue 14 Adventurer 0 Explorer 0 Win Type - Total 0 Types 0/0/0/0/0/0/0/0/0 Lore% 28 Gallery% 30 Achievement% 26 Wizard Run 0 Options --------- Layout 2 ASCII 0 Keyboard 0 Movement Mouse Keybinds 0 Fullscreen 1 Font 24/Smallcaps Map View 50x44 Zoom Use 0% Tactical HUD 1 Map Filters NONE Filters NONE Steam 1 RUN: 6e00ee07-3d1d-4560-8208-f16212a9e6b0